fUSD/lending_fUSD_20250629
["ID","MTS","AMOUNT","RATE_DAILY","PERIOD"]
[368539924,1751201453834,-490.0,0.00024931,3]
[368539926,1751201453844,-490.0,0.00024931,3]
[368539929,1751201453857,-619.39,0.00024931,3]
[368539931,1751201453866,-490.0,0.00024931,3]
[368539933,1751201453876,-490.0,0.00024931,3]
[368539935,1751201453885,-490.0,0.00024931,3]
[368539937,1751201453894,-490.0,0.00024931,3]
[368539939,1751201453903,-1097.84,0.00024931,3]
[368539941,1751201453913,-490.0,0.00024931,3]
[368539943,1751201453922,-490.0,0.00024931,3]
[368539945,1751201453931,-490.0,0.00024931,3]
[368539947,1751201453941,-832.54,0.00024931,3]
[368539949,1751201453950,-490.0,0.00024931,3]
[368539951,1751201453959,-490.0,0.00024931,3]
[368539953,1751201453970,-490.0,0.00024931,3]
[368539955,1751201453979,-400.99132803,0.00024931,3]
[368539957,1751201453988,-490.0,0.00024931,3]
[368539959,1751201453997,-490.0,0.00024931,3]
[368539961,1751201454006,-737.78,0.00024931,3]
[368539963,1751201454015,-490.0,0.00024931,3]
[368539965,1751201454025,-433.64811807,0.00024931,3]
[368539967,1751201454034,-490.0,0.00024931,3]
[368539969,1751201454043,-505.34,0.00024931,3]
[368539971,1751201454053,-490.0,0.00024931,3]
[368539973,1751201454062,-490.0,0.00024931,3]
[368539975,1751201454071,-490.0,0.00024931,3]
[368539977,1751201454081,-1000.0,0.00024931,3]
[368539979,1751201454090,-490.0,0.00024931,3]
[368539981,1751201454099,-490.0,0.00024931,3]
[368539983,1751201454109,-490.0,0.00024931,3]
[368539985,1751201454118,-708.56,0.00024931,3]
[368539987,1751201454127,-922.08,0.00024931,3]
[368539989,1751201454137,-490.0,0.00024931,3]
[368539991,1751201454146,-526.5,0.00024931,3]
[368539993,1751201454156,-490.0,0.00024931,3]
[368539995,1751201454165,-300.6505408,0.00024931,3]
[368539997,1751201454175,-490.0,0.00024931,3]
[368539999,1751201454184,-490.0,0.00024931,3]
[368540001,1751201454194,-583.75,0.00024931,3]
[368540003,1751201454203,-490.0,0.00024931,3]
[368540005,1751201454212,-1154.98,0.00024931,3]
[368540006,1751201454221,-1519.53,0.00024931,3]
[368540008,1751201454230,-490.0,0.00024931,3]
[368540009,1751201454240,-505.62,0.00024931,3]
[368540011,1751201454250,-574.53,0.00024931,3]
[368540013,1751201454259,-490.0,0.00024931,3]
[368540015,1751201454269,-490.0,0.00024931,3]
[368540017,1751201454278,-1148.33,0.00024931,3]
[368540019,1751201454287,-556.55,0.00024931,3]
[368540021,1751201454297,-494.21843921,0.00024931,3]
[368540023,1751201454306,-608.47,0.00024931,3]
[368540025,1751201454315,-490.0,0.00024931,3]
[368540027,1751201454325,-512.33,0.00024931,3]
[368540029,1751201454334,-530.18,0.00024931,3]
[368540031,1751201454344,-490.0,0.00024931,3]
[368540033,1751201454353,-490.0,0.00024931,3]
[368540035,1751201454362,-490.0,0.00024931,3]
[368540037,1751201454372,-640.88,0.00024931,3]
[368540039,1751201454381,-490.0,0.00024931,3]
[368540041,1751201454390,-490.0,0.00024931,3]
[368540043,1751201454399,-683.75,0.00024931,3]
[368540045,1751201454408,-1146.0,0.00024931,3]
[368540047,1751201454418,-490.0,0.00024931,3]
[368540049,1751201454426,-490.0,0.00024931,3]
[368540051,1751201454435,-843.92,0.00024931,3]
[368540053,1751201454444,-490.0,0.00024931,3]
[368540055,1751201454454,-490.0,0.00024931,3]
[368540056,1751201454464,-1068.22,0.00024931,3]
[368540058,1751201454473,-490.0,0.00024931,3]
[368540060,1751201454482,-490.0,0.00024931,3]
[368540062,1751201454492,-490.0,0.00024931,3]
[368540064,1751201454501,-490.0,0.00024931,3]
[368540066,1751201454511,-1496.85,0.00024931,3]
[368540068,1751201454520,-490.0,0.00024931,3]
[368540070,1751201454529,-834.73,0.00024931,3]
[368540072,1751201454539,-490.0,0.00024931,3]
[368540074,1751201454548,-490.0,0.00024931,3]
[368540076,1751201454558,-692.48,0.00024931,3]
[368540078,1751201454567,-490.0,0.00024931,3]
[368540080,1751201454576,-490.0,0.00024931,3]
[368540082,1751201454586,-490.0,0.00024931,3]
[368540084,1751201454595,-490.0,0.00024931,3]
[368540086,1751201454605,-495.98147473,0.00024931,3]
[368540088,1751201454614,-490.0,0.00024931,3]
[368540090,1751201454624,-607.29,0.00024931,3]
[368540092,1751201454633,-490.0,0.00024931,3]
[368540094,1751201454643,-490.0,0.00024931,3]
[368540096,1751201454652,-576.76,0.00024931,3]
[368540098,1751201454663,-614.07,0.00024931,3]
[368540100,1751201454675,-221.87575256,0.00024931,3]
[368540102,1751201454684,-808.27,0.00024931,3]
[368540104,1751201454694,-515.74163486,0.00024931,3]
[368540106,1751201454703,-490.0,0.00024931,3]
[368540108,1751201454714,-495.49041752,0.00024931,3]
[368540110,1751201454723,-490.0,0.00024931,3]
[368540112,1751201454732,-490.0,0.00024931,3]
[368540114,1751201454743,-490.0,0.00024931,3]
[368540116,1751201454753,-490.0,0.00024931,3]
[368540118,1751201454762,-490.0,0.00024931,3]
[368540120,1751201454772,-490.0,0.00024931,3]
[368540122,1751201454782,-490.0,0.00024931,3]
[368540124,1751201454791,-490.0,0.00024931,3]
[368540126,1751201454803,-501.91,0.00024931,3]
[368540128,1751201454812,-766.61,0.00024931,3]
[368540130,1751201454821,-490.0,0.00024931,3]
[368540132,1751201454832,-490.0,0.00024931,3]
[368540134,1751201454841,-490.0,0.00024931,3]
[368540136,1751201454851,-547.81,0.00024931,3]
[368540138,1751201454860,-490.0,0.00024931,3]
[368540140,1751201454870,-490.0,0.00024931,3]
[368540142,1751201454879,-490.0,0.00024931,3]
[368540144,1751201454889,-802.03,0.00024931,3]
[368540146,1751201454898,-490.0,0.00024931,3]
[368540148,1751201454907,-490.0,0.00024931,3]
[368540150,1751201454916,-490.0,0.00024931,3]
[368540152,1751201454925,-490.0,0.00024931,3]
[368540154,1751201454935,-514.87,0.00024931,3]
[368540156,1751201454944,-586.94,0.00024931,3]
[368540158,1751201454953,-781.2,0.00024931,3]
[368540160,1751201454963,-564.73398575,0.00024931,3]
[368540162,1751201454972,-490.0,0.00024931,3]
[368540164,1751201454982,-490.0,0.00024931,3]
[368540166,1751201454991,-490.0,0.00024931,3]
[368540168,1751201455000,-490.0,0.00024931,3]
[368540170,1751201455010,-758.65,0.00024931,3]
[368540172,1751201455020,-521.04,0.00024931,3]
[368540174,1751201455029,-867.13,0.00024931,3]
[368540176,1751201455039,-490.0,0.00024931,3]
[368540178,1751201455048,-490.0,0.00024931,3]
[368540180,1751201455058,-1510.54,0.00024931,3]
[368540182,1751201455067,-490.0,0.00024931,3]
[368540184,1751201455076,-490.0,0.00024931,3]
[368540209,1751201455296,-490.0,0.00024931,3]
[368540212,1751201455312,-339.59021432,0.00024931,3]
[368540214,1751201455321,-490.0,0.00024931,3]
[368540216,1751201455331,-492.85634952,0.00024931,3]
[368540218,1751201455340,-490.0,0.00024931,3]
[368540220,1751201455349,-490.0,0.00024931,3]
[368540222,1751201455358,-490.0,0.00024931,3]
[368540224,1751201455367,-490.0,0.00024931,3]
[368540226,1751201455377,-2192.07,0.00024931,3]
[368540228,1751201455386,-674.51,0.00024931,3]
[368540230,1751201455395,-490.0,0.00024931,3]
[368540232,1751201455404,-490.0,0.00024931,3]
[368540234,1751201455414,-490.0,0.00024931,3]
[368540236,1751201455423,-1500.0,0.00024931,3]
[368540238,1751201455432,-490.0,0.00024931,3]
[368540240,1751201455442,-2157.41,0.00024931,3]
[368540242,1751201455451,-280.40075446,0.00024931,3]
[368540244,1751201455461,-490.0,0.00024931,3]
[368540246,1751201455470,-490.0,0.00024931,3]
[368540248,1751201455480,-989.77,0.00024931,3]
[368540250,1751201455489,-665.8,0.00024931,3]
[368540252,1751201455498,-490.0,0.00024931,3]
[368540254,1751201455507,-490.0,0.00024931,3]
[368540256,1751201455516,-1088.22,0.00024931,3]
[368540258,1751201455525,-490.0,0.00024931,3]
[368540260,1751201455534,-467.61133157,0.00024931,3]
[368540262,1751201455544,-553.8,0.00024931,3]
[368540264,1751201455553,-696.88,0.00024931,3]
[368540266,1751201455562,-490.0,0.00024931,3]
[368540268,1751201455571,-554.26745862,0.00024931,3]
[368540270,1751201455580,-490.0,0.00024931,3]
[368540272,1751201455589,-490.0,0.00024931,3]
[368540274,1751201455599,-1268.61,0.00024931,3]
[368540276,1751201455609,-1889.65,0.00024931,3]
[368540278,1751201455618,-490.0,0.00024931,3]
[368540280,1751201455627,-490.0,0.00024931,3]
[368540282,1751201455636,-544.95,0.00024931,3]
[368540284,1751201455646,-490.0,0.00024931,3]
[368540286,1751201455655,-497.62,0.00024931,3]
[368540288,1751201455665,-490.0,0.00024931,3]
[368540290,1751201455675,-546.04,0.00024931,3]
[368540291,1751201455684,-490.0,0.00024931,3]
[368540293,1751201455693,-490.0,0.00024931,3]
[368540295,1751201455703,-490.0,0.00024931,3]
[368540297,1751201455713,-490.0,0.00024931,3]
[368540299,1751201455723,-490.0,0.00024931,3]
[368540302,1751201455732,-490.0,0.00024931,3]
[368540304,1751201455744,-695.99,0.00024931,3]
[368540306,1751201455754,-490.0,0.00024931,3]
[368540308,1751201455763,-490.0,0.00024931,3]
[368540310,1751201455772,-490.0,0.00024931,3]
[368540312,1751201455781,-490.0,0.00024931,3]
[368540314,1751201455791,-490.0,0.00024931,3]
[368540316,1751201455800,-490.0,0.00024931,3]
[368540318,1751201455810,-1185.22,0.00024931,3]
[368540320,1751201455819,-490.0,0.00024931,3]
[368540322,1751201455829,-764.3,0.00024931,3]
[368540324,1751201455838,-929.8,0.00024931,3]
[368540326,1751201455847,-2010.01,0.00024931,3]
[368540328,1751201455856,-490.0,0.00024931,3]
[368540330,1751201455866,-490.0,0.00024931,3]
[368540332,1751201455875,-1502.79,0.00024931,3]
[368540334,1751201455884,-425.62052598,0.00024931,3]
[368540336,1751201455894,-490.0,0.00024931,3]
[368540338,1751201455903,-490.0,0.00024931,3]
[368540340,1751201455912,-1289.53,0.00024931,3]
[368540342,1751201455920,-490.0,0.00024931,3]
[368540344,1751201455930,-2285.18,0.00024931,3]
[368540346,1751201455939,-1961.28,0.00024931,3]
[368540348,1751201455948,-490.0,0.00024931,3]
[368540350,1751201455958,-490.0,0.00024931,3]
[368540352,1751201455968,-646.56,0.00024931,3]
[368540354,1751201455977,-1200.36,0.00024931,3]
[368540356,1751201455987,-490.0,0.00024931,3]
[368540358,1751201455996,-490.0,0.00024931,3]
[368540360,1751201456005,-490.0,0.00024931,3]
[368540362,1751201456015,-490.0,0.00024931,3]
[368540364,1751201456024,-490.0,0.00024931,3]
[368540366,1751201456034,-490.0,0.00024931,3]
[368540368,1751201456044,-490.0,0.00024931,3]
[368540370,1751201456053,-1455.69,0.00024931,3]
[368540372,1751201456063,-490.0,0.00024931,3]
[368540374,1751201456072,-870.46,0.00024931,3]
[368540376,1751201456081,-1065.18,0.00024931,3]
[368540378,1751201456091,-490.0,0.00024931,3]
[368540380,1751201456100,-490.0,0.00024931,3]
[368540382,1751201456110,-490.0,0.00024931,3]
[368540384,1751201456119,-1413.88,0.00024931,3]
[368540386,1751201456128,-2023.07,0.00024931,3]
[368540388,1751201456138,-361.04593265,0.00024931,3]
[368540390,1751201456148,-490.0,0.00024931,3]
[368540391,1751201456158,-490.0,0.00024931,3]
[368540392,1751201456167,-490.0,0.00024931,3]
[368540393,1751201456176,-490.0,0.00024931,3]
[368540394,1751201456185,-2726.71,0.00024931,3]
[368540395,1751201456195,-490.0,0.00024931,3]
[368540396,1751201456204,-490.0,0.00024931,3]
[368540397,1751201456213,-490.0,0.00024931,3]
[368540398,1751201456221,-490.0,0.00024931,3]
[368540399,1751201456231,-490.0,0.00024931,3]
[368540400,1751201456239,-439.32874311,0.00024931,3]
[368540401,1751201456248,-490.0,0.00024931,3]
[368540402,1751201456257,-505.44,0.00024931,3]
[368540403,1751201456266,-490.0,0.00024931,3]
[368540404,1751201456275,-1103.31,0.00024931,3]
[368540405,1751201456284,-1620.53,0.00024931,3]
[368540407,1751201456293,-490.0,0.00024931,3]
[368540409,1751201456303,-538.9,0.00024931,3]
[368540411,1751201456313,-492.00935777,0.00024931,3]
[368540413,1751201456322,-507.36,0.00024931,3]
[368540415,1751201456331,-490.0,0.00024931,3]
[368540417,1751201456341,-1203.06,0.00024931,3]
[368540419,1751201456350,-1804.9,0.00024931,3]
[368540421,1751201456359,-546.19,0.00024931,3]
[368540423,1751201456369,-1096.45,0.00024931,3]
[368540425,1751201456378,-780.08,0.00024931,3]
[368540427,1751201456388,-2488.18,0.00024931,3]
[368540429,1751201456398,-490.0,0.00024931,3]
[368540431,1751201456408,-490.0,0.00024931,3]
[368540433,1751201456417,-1670.65,0.00024931,3]
[368540435,1751201456427,-339.00541149,0.00024931,3]
[368540437,1751201456437,-490.0,0.00024931,3]
[368540439,1751201456446,-490.0,0.00024931,3]
[368540441,1751201456456,-641.05,0.00024931,3]
[368540443,1751201456465,-1256.95,0.00024931,3]
[368540445,1751201456474,-490.0,0.00024931,3]
[368540447,1751201456484,-2719.81,0.00024931,3]
[368540449,1751201456493,-490.0,0.00024931,3]
[368540451,1751201456502,-1028.28,0.00024931,3]
[368540453,1751201456511,-689.05,0.00024931,3]
[368540455,1751201456521,-490.0,0.00024931,3]
[368540457,1751201456530,-442.45099863,0.00024931,3]
[368540459,1751201456539,-825.37,0.00024931,3]
[368540461,1751201456549,-490.0,0.00024931,3]
[368540463,1751201456559,-1284.03,0.00024931,3]
[368540465,1751201456569,-1225.82,0.00024931,3]
[368540467,1751201456578,-490.0,0.00024931,3]
[368540469,1751201456588,-905.64,0.00024931,3]
[368540471,1751201456597,-1248.82,0.00024931,3]
[368540473,1751201456606,-217.58534114,0.00024931,3]
[368540475,1751201456615,-490.0,0.00024931,3]
[368540477,1751201456625,-1087.42,0.00024931,3]
[368540479,1751201456634,-490.0,0.00024931,3]
[368540481,1751201456644,-490.0,0.00024931,3]
[368540483,1751201456653,-490.0,0.00024931,3]
[368540485,1751201456662,-490.0,0.00024931,3]
[368540487,1751201456675,-824.41,0.00024931,3]
[368540489,1751201456684,-490.0,0.00024931,3]
[368540491,1751201456694,-490.0,0.00024931,3]
[368540493,1751201456703,-2557.18,0.00024931,3]
[368540496,1751201456714,-490.0,0.00024931,3]
[368540498,1751201456723,-666.97,0.00024931,3]
[368540500,1751201456733,-490.0,0.00024931,3]
[368540502,1751201456743,-490.0,0.00024931,3]
[368540504,1751201456752,-521.7134462,0.00024931,3]
[368540506,1751201456761,-3498.81,0.00024931,3]
[368540508,1751201456771,-490.0,0.00024931,3]
[368540510,1751201456780,-801.71,0.00024931,3]
[368540512,1751201456789,-490.0,0.00024931,3]
[368540514,1751201456798,-493.88960553,0.00024931,3]
[368540516,1751201456810,-490.0,0.00024931,3]
[368540518,1751201456819,-490.0,0.00024931,3]
[368540520,1751201456828,-490.0,0.00024931,3]
[368540522,1751201456838,-490.0,0.00024931,3]
[368540524,1751201456847,-494.96547124,0.00024931,3]
[368540526,1751201456857,-1233.6,0.00024931,3]
[368540528,1751201456866,-2658.2,0.00024931,3]
[368540530,1751201456875,-490.0,0.00024931,3]
[368540532,1751201456884,-490.0,0.00024931,3]
[368540534,1751201456895,-2851.47,0.00024931,3]
[368540536,1751201456904,-411.41659068,0.00024931,3]
[368540538,1751201456913,-1657.06,0.00024931,3]
[368540540,1751201456922,-490.0,0.00024931,3]
[368540542,1751201456931,-1669.78,0.00024931,3]
[368540544,1751201456941,-490.0,0.00024931,3]
[368540546,1751201456950,-1450.21,0.00024931,3]
[368540548,1751201456959,-490.0,0.00024931,3]
[368540550,1751201456968,-490.0,0.00024931,3]
[368540552,1751201456977,-572.85,0.00024931,3]
[368540554,1751201456986,-490.0,0.00024931,3]
[368540556,1751201456995,-410.39951486,0.00024931,3]
[368540558,1751201457005,-490.0,0.00024931,3]
[368540560,1751201457015,-580.10482968,0.00024931,3]
[368540562,1751201457024,-450.0,0.00024931,3]
[368540564,1751201457033,-1255.3,0.00024931,3]
[368540566,1751201457042,-490.0,0.00024931,3]
[368540568,1751201457052,-1368.4,0.00024931,3]
[368540570,1751201457061,-490.0,0.00024931,3]
[368540572,1751201457071,-490.0,0.00024931,3]
[368540574,1751201457079,-1155.02,0.00024931,3]
[368540576,1751201457089,-490.0,0.00024931,3]
[368540578,1751201457098,-490.0,0.00024931,3]
[368540580,1751201457107,-875.25,0.00024931,3]
[368540582,1751201457116,-1109.3,0.00024931,3]
[368540584,1751201457126,-490.0,0.00024931,3]
[368540586,1751201457135,-490.0,0.00024931,3]
[368540588,1751201457144,-2537.19,0.00024931,3]
[368540590,1751201457153,-898.83,0.00024931,3]
[368540592,1751201457162,-490.0,0.00024931,3]
[368540594,1751201457171,-490.0,0.00024931,3]
[368540596,1751201457181,-490.0,0.00024931,3]
[368540598,1751201457189,-490.0,0.00024931,3]
[368540600,1751201457199,-490.0,0.00024931,3]
[368540602,1751201457208,-490.0,0.00024931,3]
[368540604,1751201457218,-508.22,0.00024931,3]
[368540606,1751201457227,-1827.12,0.00024931,3]
[368540608,1751201457237,-707.84,0.00024931,3]
[368540610,1751201457246,-490.0,0.00024931,3]
[368540612,1751201457255,-557.77,0.00024931,3]
[368540614,1751201457264,-3187.71,0.00024931,3]
[368540616,1751201457274,-490.0,0.00024931,3]
[368540618,1751201457283,-555.83,0.00024931,3]
[368540620,1751201457293,-490.0,0.00024931,3]
[368540622,1751201457303,-490.0,0.00024931,3]
[368540624,1751201457312,-490.0,0.00024931,3]
[368540626,1751201457322,-490.0,0.00024931,3]
[368540628,1751201457331,-1055.88,0.00024931,3]
[368540630,1751201457340,-490.0,0.00024931,3]
[368540632,1751201457350,-490.0,0.00024931,3]
[368540634,1751201457360,-707.6,0.00024931,3]
[368540636,1751201457370,-490.0,0.00024931,3]
[368540638,1751201457380,-490.0,0.00024931,3]
[368540640,1751201457390,-567.82,0.00024931,3]
[368540642,1751201457400,-1188.85,0.00024931,3]
[368540644,1751201457411,-586.01,0.00024931,3]
[368540646,1751201457420,-1074.57,0.00024931,3]
[368540648,1751201457430,-942.28,0.00024931,3]
[368540650,1751201457440,-490.0,0.00024931,3]
[368540652,1751201457449,-490.0,0.00024931,3]
[368540654,1751201457458,-490.0,0.00024931,3]
[368540656,1751201457468,-490.0,0.00024931,3]
[368540658,1751201457477,-490.0,0.00024931,3]
[368540660,1751201457487,-490.0,0.00024931,3]
[368540662,1751201457496,-490.0,0.00024931,3]
[368540664,1751201457505,-699.95,0.00024931,3]
[368540666,1751201457515,-490.0,0.00024931,3]
[368540668,1751201457526,-490.0,0.00024931,3]
[368540670,1751201457535,-490.0,0.00024931,3]
[368540672,1751201457544,-490.0,0.00024931,3]
[368540674,1751201457554,-648.62,0.00024931,3]
[368540676,1751201457563,-492.32800435,0.00024931,3]
[368540678,1751201457573,-490.0,0.00024931,3]
[368540680,1751201457582,-490.0,0.00024931,3]
[368540682,1751201457591,-551.15,0.00024931,3]
[368540684,1751201457600,-1135.58,0.00024931,3]
[368540686,1751201457610,-490.0,0.00024931,3]
[368540688,1751201457619,-490.0,0.00024931,3]
[368540690,1751201457628,-493.62,0.00024931,3]
[368540700,1751201457716,-490.0,0.00024931,3]
[368540702,1751201457726,-1082.84,0.00024931,3]
[368540704,1751201457734,-490.0,0.00024931,3]
[368540706,1751201457745,-659.82,0.00024931,3]
[368540708,1751201457754,-979.7,0.00024931,3]
[368540710,1751201457763,-490.0,0.00024931,3]
[368540712,1751201457772,-1444.93,0.00024931,3]
[368540714,1751201457782,-490.0,0.00024931,3]
[368540716,1751201457792,-493.11156693,0.00024931,3]
[368540718,1751201457801,-490.0,0.00024931,3]
[368540720,1751201457810,-876.83,0.00024931,3]
[368540722,1751201457819,-558.82,0.00024931,3]
[368540724,1751201457827,-741.57,0.00024931,3]
[368540726,1751201457837,-490.0,0.00024931,3]
[368540728,1751201457846,-490.0,0.00024931,3]
[368540730,1751201457855,-2731.94,0.00024931,3]
[368540732,1751201457864,-337.00066572,0.00024931,3]
[368540734,1751201457874,-490.0,0.00024931,3]
[368540736,1751201457883,-490.0,0.00024931,3]
[368540738,1751201457892,-490.0,0.00024931,3]
[368540740,1751201457901,-1174.14,0.00024931,3]
[368540742,1751201457910,-964.95,0.00024931,3]
[368540744,1751201457919,-490.0,0.00024931,3]
[368540746,1751201457928,-321.13623252,0.00024931,3]
[368540748,1751201457937,-490.0,0.00024931,3]
[368540750,1751201457946,-2917.3,0.00024931,3]
[368540752,1751201457955,-2263.12,0.00024931,3]
[368540754,1751201457964,-879.95,0.00024931,3]
[368540756,1751201457973,-541.9,0.00024931,3]
[368540758,1751201457982,-490.0,0.00024931,3]
[368540760,1751201457991,-347.3923683,0.00024931,3]
[368540762,1751201458000,-490.0,0.00024931,3]
[368540764,1751201458009,-490.0,0.00024931,3]
[368540766,1751201458018,-16816.13,0.00024931,3]
[368540768,1751201458027,-2004.78,0.00024931,3]
[368540770,1751201458036,-2646.23,0.00024931,3]
[368540772,1751201458045,-490.0,0.00024931,3]
[368540774,1751201458054,-490.0,0.00024931,3]
[368540776,1751201458063,-490.0,0.00024931,3]
[368540777,1751201458072,-490.0,0.00024931,3]
[368540779,1751201458081,-575.46,0.00024931,3]
[368540781,1751201458090,-490.0,0.00024931,3]
[368540783,1751201458099,-7557.19,0.00024931,3]
[368540785,1751201458108,-490.0,0.00024931,3]
[368540787,1751201458117,-1734.91,0.00024931,3]
[368540789,1751201458126,-490.0,0.00024931,3]
[368540791,1751201458135,-490.0,0.00024931,3]
[368540793,1751201458144,-490.0,0.00024931,3]
[368540795,1751201458154,-4952.51,0.00024931,3]
[368540797,1751201458162,-490.0,0.00024931,3]
[368540799,1751201458171,-490.0,0.00024931,3]
[368540801,1751201458180,-490.0,0.00024931,3]
[368540803,1751201458189,-956.43,0.00024931,3]
[368540804,1751201458197,-490.0,0.00024931,3]
[368540806,1751201458208,-490.0,0.00024931,3]
[368540808,1751201458217,-575.20377726,0.00024931,3]
[368540810,1751201458226,-490.0,0.00024931,3]
[368540812,1751201458236,-490.0,0.00024931,3]
[368540814,1751201458245,-1564.17,0.00024931,3]
[368540816,1751201458254,-490.0,0.00024931,3]
[368540818,1751201458263,-530.88,0.00024931,3]
[368540820,1751201458272,-2978.47,0.00024931,3]
[368540822,1751201458281,-1176.28,0.00024931,3]
[368540824,1751201458291,-490.0,0.00024931,3]
[368540826,1751201458300,-490.0,0.00024931,3]
[368540828,1751201458309,-490.0,0.00024931,3]
[368540830,1751201458318,-10252.96,0.00024931,3]
[368540832,1751201458326,-696.62,0.00024931,3]
[368540834,1751201458335,-3176.95,0.00024931,3]
[368540836,1751201458344,-1934.71,0.00024931,3]
[368540838,1751201458354,-676.15,0.00024931,3]
[368540840,1751201458363,-490.0,0.00024931,3]
[368540842,1751201458372,-490.0,0.00024931,3]
[368540844,1751201458381,-525.19,0.00024931,3]
[368540845,1751201458390,-490.0,0.00024931,3]
[368540847,1751201458399,-2642.29,0.00024931,3]
[368540849,1751201458407,-490.0,0.00024931,3]
[368540851,1751201458416,-490.0,0.00024931,3]
[368540853,1751201458425,-2556.87,0.00024931,3]
[368540855,1751201458435,-2033.46,0.00024931,3]
[368540857,1751201458444,-870.83,0.00024931,3]
[368540859,1751201458453,-490.0,0.00024931,3]
[368540861,1751201458462,-3800.78,0.00024931,3]
[368540863,1751201458471,-1601.64,0.00024931,3]
[368540865,1751201458480,-490.0,0.00024931,3]
[368540866,1751201458489,-490.0,0.00024931,3]
[368540867,1751201458497,-1873.07,0.00024931,3]
[368540868,1751201458506,-2598.58,0.00024931,3]
[368540869,1751201458516,-932.85,0.00024931,3]
[368540870,1751201458525,-490.0,0.00024931,3]
[368540871,1751201458533,-490.0,0.00024931,3]
[368540872,1751201458542,-4076.58013,0.00024931,3]
[368540873,1751201458551,-490.0,0.00024931,3]
[368540874,1751201458560,-1991.03,0.00024931,3]
[368540875,1751201458569,-4453.79,0.00024931,3]
[368540876,1751201458577,-490.0,0.00024931,3]
[368540877,1751201458586,-5237.75,0.00024931,3]
[368540878,1751201458595,-720.91,0.00024931,3]
[368540879,1751201458604,-1489.26,0.00024931,3]
[368540880,1751201458613,-494.97,0.00024931,3]
[368540882,1751201458623,-490.0,0.00024931,3]
[368540884,1751201458632,-1541.52,0.00024931,3]
[368540886,1751201458641,-2590.77,0.00024931,3]
[368540888,1751201458650,-490.0,0.00024931,3]
[368540890,1751201458659,-2600.69,0.00024931,3]
[368540892,1751201458675,-3685.23,0.00024931,3]
[368540894,1751201458684,-490.0,0.00024931,3]
[368540896,1751201458693,-1661.01,0.00024931,3]
[368540898,1751201458702,-556.92,0.00024931,3]
[368540900,1751201458714,-490.0,0.00024931,3]
[368540902,1751201458724,-490.0,0.00024931,3]
[368540904,1751201458734,-490.0,0.00024931,3]
[368540906,1751201458744,-5789.69,0.00024931,3]
[368540908,1751201458753,-352.52078665,0.00024931,3]
[368540910,1751201458763,-490.0,0.00024931,3]
[368540912,1751201458772,-4170.95,0.00024931,3]
[368540914,1751201458782,-490.0,0.00024931,3]
[368540916,1751201458790,-522.93,0.00024931,3]
[368540918,1751201458800,-851.73,0.00024931,3]
[368540920,1751201458809,-503.56,0.00024931,3]